bitfinex-derivatives/quotes_SOLF0:USTF0_20250516
["timestamp","ask_amount","ask_price","bid_price","bid_amount"]
[1747402434354,27.39980986,172.77,172.63,140.3203]
[1747402434355,68.24,172.76,172.67,2.07255656]
[1747402434656,68.2,172.75,172.63,72.1003]
[1747402434855,73.9864,172.75,172.71,5.7873]
[1747402435255,68.2,172.75,172.63,72.1003]
[1747402435457,68.2,172.75,172.64,2.07353839]
[1747402435755,68.2,172.75,172.65,2.07353839]
[1747402435955,73.9864,172.75,172.71,5.7873]
[1747402436155,68.2,172.75,172.71,5.7873]
[1747402436351,68.2,172.75,172.64,68.2]
[1747402436551,5.787,172.73,172.7,5.7878]
[1747402436751,68.2,172.75,172.64,68.2]
[1747402436954,68.2,172.75,172.65,2.07389694]
[1747402437156,73.9865,172.75,172.71,5.7873]
[1747402437546,68.2,172.75,172.71,5.7873]
[1747402438061,5.7868,172.74,172.7,5.7877]
[1747402438458,68.2,172.75,172.7,5.7877]
[1747402439360,68.2,172.75,172.64,68.2]
[1747402439548,68.2,172.75,172.65,2.07537654]
[1747402439747,68.2,172.75,172.66,2.07537654]
[1747402439951,68.2,172.75,172.72,5.7871]
[1747402440150,68.2,172.75,172.64,68.2]
[1747402440349,136.08,172.75,172.72,5.7869]
[1747402440556,136.08,172.75,172.66,2.07507822]
[1747402440757,136.08,172.75,172.67,2.07507822]
[1747402440959,136.08,172.75,172.68,2.07507822]
[1747402441157,136.08,172.75,172.64,68.2]
[1747402441458,68.2,172.79,172.65,18.90841038]
[1747402441656,68.2,172.79,172.66,2.0747046]
[1747402441851,68.2,172.83,172.69,16.83333966]
[1747402442054,68.2,172.83,172.7,140.21692659]
[1747402442259,68.2,172.83,172.71,2.07412659]
[1747402442455,68.2,172.83,172.72,5.93392659]
[1747402442658,68.2,172.83,172.73,2.07412659]
[1747402442958,68.2,172.83,172.74,2.07412659]
[1747402443161,68.2,172.83,172.72,3.8598]
[1747402443461,68.2,172.83,172.73,2.07358616]
[1747402443662,5.7863,172.75,172.65,68.2]
[1747402443963,68.04,172.75,172.66,2.07382927]
[1747402444259,68.04,172.75,172.65,68.2]
[1747402444463,68.04,172.75,172.66,2.07382704]
[1747402444758,73.8264,172.75,172.67,2.07382704]
[1747402444958,68.04,172.75,172.68,2.07382704]
[1747402445160,68.2,172.76,172.75,5.7861]
[1747402445661,67.98,172.78,172.77,5.7855]
[1747402446864,67.98,172.78,172.77,7.85821691]
[1747402447057,68.2,172.8,172.78,5.785]
[1747402447457,68.2,172.8,172.72,1.8241]
[1747402447662,68.2,172.8,172.73,2.07305038]
[1747402447961,68.2,172.8,172.74,2.07305038]
[1747402448163,68.2,172.8,172.79,5.7848]
[1747402448575,68.18,172.84,172.81,5.784]
[1747402448762,136.14,172.84,172.73,2.07349388]
[1747402448964,136.14,172.84,172.74,70.01349388]
[1747402449270,136.14,172.84,172.75,70.25349388]
[1747402449570,136.14,172.84,172.76,2.07349388]
[1747402449768,136.14,172.84,172.77,2.07349388]
[1747402449972,136.14,172.84,172.78,2.07349388]
[1747402450270,136.14,172.84,172.79,2.07349388]
[1747402450471,68.18,172.84,172.75,68.18]
[1747402450664,68.18,172.84,172.76,2.07315903]
[1747402450971,136.0,172.89,172.77,2.07315903]
[1747402451173,500.1,172.96,172.78,2.07315903]
[1747402451371,500.1,172.96,172.75,79.7517]
[1747402451372,1.15640358,172.95,172.8,38.91181835]
[1747402451667,1.15640358,172.95,172.84,27.34291835]
[1747402451870,1.15640358,172.95,172.85,69.95149923]
[1747402452076,1.15640358,172.95,172.94,5.7798]
[1747402452769,67.92,173.0,172.95,5.7793]
[1747402452964,67.92,173.0,172.92,2.06801526]
[1747402453168,68.18,173.01,172.91,70.0687]
[1747402453366,136.52,173.01,172.92,2.06546952]
[1747402453668,136.52,173.01,173.0,5.7778]
[1747402453859,68.34,173.01,172.94,2.06509757]
[1747402454065,68.34,173.01,172.95,2.06509757]
[1747402454266,68.34,173.01,172.92,2.06264796]
[1747402454463,68.34,173.01,172.91,73.6852]
[1747402454666,68.16,173.0,172.92,2.06274559]
[1747402454869,68.16,173.0,172.9,2.06312038]
[1747402455066,68.38,172.99,172.91,2.0631065]
[1747402455272,68.38,172.99,172.92,2.0631065]
[1747402455464,68.38,172.99,172.88,2.0631065]
[1747402455664,68.38,172.99,172.89,2.0631065]
[1747402455867,68.38,172.99,172.87,68.16]
[1747402455868,68.48,172.98,172.9,2.0631065]
[1747402456061,68.5,173.0,172.91,2.0631065]
[1747402456266,68.5,173.0,172.92,2.0631065]
[1747402456464,68.5,173.0,172.93,2.0631065]
[1747402456669,68.5,173.0,172.92,68.16]
[1747402456869,68.5,173.0,172.93,5.7049065]
[1747402457070,68.5,173.0,172.94,2.05950913]
[1747402457274,68.5,173.0,172.95,2.05950913]
[1747402457464,903.0,173.36,172.95,2.05950913]
[1747402457665,95.74291835,173.24,173.03,27.34291835]
[1747402457865,5.7718,173.18,173.04,144.08310913]
[1747402458071,68.14,173.22,173.05,2.05950913]
[1747402458263,68.14,173.22,173.07,27.34291835]
[1747402458472,68.14,173.22,173.08,2.05950913]
[1747402458676,68.14,173.22,173.09,138.63950913]
[1747402458875,68.14,173.22,173.1,2.05950913]
[1747402459064,68.14,173.22,173.1,2.04845701]
[1747402459477,68.5,173.21,173.1,2.04845701]
[1747402459671,68.5,173.21,173.18,5.7718]
[1747402459978,68.52,173.22,173.14,68.14]
[1747402460780,68.52,173.22,173.14,136.64]
[1747402460981,136.6,173.24,173.14,136.64]
[1747402461183,68.14,173.24,173.14,136.64]
[1747402461477,68.46,173.23,173.1,68.1]
[1747402463381,27.34291835,173.2,173.07,568.18]
[1747402463580,499.46,173.23,173.07,568.18]
[1747402463781,136.42,173.22,173.07,568.18]
[1747402464079,68.08,173.22,173.07,595.52291835]
[1747402464472,68.34,173.21,173.07,595.52291835]
[1747402464678,5.7712,173.2,173.07,595.52291835]
[1747402464880,68.34,173.21,173.07,595.52291835]
[1747402465577,68.28,173.2,173.07,595.52291835]
[1747402465783,68.28,173.2,173.11,27.34291835]
[1747402465975,68.28,173.2,173.12,68.32]
[1747402466178,68.28,173.2,173.12,136.64]
[1747402466681,68.32,173.26,173.12,136.64]
[1747402466879,68.32,173.26,173.13,1.8513]
[1747402467079,5.7697,173.25,173.14,3.8473]
[1747402467282,68.32,173.26,173.14,3.8473]
[1747402467685,5.7691,173.26,173.14,3.8473]
[1747402467986,74.0891,173.26,173.14,3.8473]
[1747402468186,74.0891,173.26,173.2,5.7708]
[1747402468388,68.32,173.26,173.17,68.3]
[1747402469888,499.3,173.31,173.17,68.3]
[1747402470195,567.58,173.31,173.18,68.16]
[1747402470490,68.16,173.3,173.18,68.16]
[1747402470691,68.18,173.29,173.26,5.769]
[1747402471093,68.18,173.29,173.22,68.28]
[1747402471483,68.28,173.31,173.22,68.28]
[1747402471887,136.34,173.31,173.26,5.7688]
[1747402472186,136.34,173.31,173.22,68.28]
[1747402472386,136.34,173.31,173.22,74.0504]
[1747402472689,5.769,173.27,173.22,68.28]
[1747402472885,136.28,173.26,173.17,68.26]
[1747402473188,136.28,173.25,173.17,68.26]
[1747402473388,136.28,173.25,173.14,72.1073]
[1747402473787,5.7707,173.22,173.18,5.7715]
[1747402473994,136.28,173.25,173.14,72.1073]
[1747402474295,5.7705,173.22,173.18,5.7715]
[1747402474498,136.28,173.25,173.14,72.1073]
[1747402474787,136.28,173.25,173.14,68.26]
[1747402474990,136.28,173.25,173.15,5.7728]
[1747402475493,136.28,173.25,173.1,68.26]
[1747402475494,163.62291835,173.25,173.1,68.26]
[1747402475993,163.62291835,173.25,173.15,5.7725]
[1747402476498,163.62291835,173.25,173.1,68.26]
[1747402476691,5.7709,173.21,173.17,5.7718]
[1747402476892,68.02,173.2,173.17,5.7718]
[1747402477093,5.7717,173.19,173.15,5.7728]
[1747402477293,68.02,173.2,173.1,68.26]
[1747402477696,5.7715,173.19,173.1,68.26]
[1747402477892,68.02,173.2,173.1,68.26]
[1747402478197,5.7721,173.17,173.1,68.26]
[1747402478696,68.02,173.2,173.08,3.812]
[1747402478894,68.26,173.16,173.05,68.26]
[1747402479098,67.86,173.15,173.05,68.26]
[1747402479292,5.7741,173.11,173.07,5.7753]
[1747402479491,67.86,173.15,173.05,68.26]
[1747402479699,5.7737,173.13,173.08,5.7751]
[1747402479899,67.86,173.15,173.08,5.7751]
[1747402480501,67.86,173.15,173.05,68.26]
[1747402480695,73.6329,173.15,173.05,68.26]
[1747402480890,73.6329,173.15,173.11,5.7739]
[1747402481098,67.86,173.15,173.05,68.26]
[1747402481300,73.633,173.15,173.05,68.26]
[1747402481501,67.86,173.15,173.05,68.26]
[1747402482400,67.86,173.15,173.02,68.04]
[1747402482597,5.7742,173.11,173.07,5.7753]
[1747402482804,68.0,173.1,173.01,68.28]
[1747402483202,73.7747,173.1,173.06,5.7755]
[1747402483402,68.0,173.1,173.06,5.7755]
[1747402483602,68.0,173.1,173.01,68.28]
[1747402483802,73.7745,173.1,173.01,68.28]
[1747402484301,68.0,173.1,173.01,68.28]
[1747402484490,68.28,173.11,173.01,68.28]
[1747402484695,136.16,173.11,173.01,68.28]
[1747402485302,136.16,173.15,173.01,68.28]
[1747402485896,136.16,173.15,173.03,27.34291835]
[1747402486296,141.9329,173.15,173.1,5.7742]
[1747402486502,67.8,173.14,173.1,5.7742]
[1747402486802,67.8,173.14,173.03,27.34291835]
[1747402487402,67.8,173.14,173.11,5.7738]
[1747402487800,67.8,173.14,173.03,27.34291835]
[1747402487997,5.7735,173.13,173.02,2.03503675]
[1747402488802,67.8,173.14,173.01,68.28]
[1747402489302,5.7743,173.11,173.01,68.28]
[1747402489702,67.8,173.14,173.01,68.28]
[1747402490801,67.8,173.14,173.02,2.04382973]
[1747402491003,5.7737,173.13,173.09,5.7746]
[1747402491206,67.8,173.14,173.02,2.04382973]
[1747402491605,5.7739,173.12,173.08,5.7749]
[1747402491900,498.94,173.17,173.02,2.04382973]
[1747402492104,74.0526,173.16,173.03,2.04382973]
[1747402492307,67.4,173.15,173.04,2.04382973]
[1747402492505,67.4,173.15,173.05,2.04970992]
[1747402492710,73.1729,173.15,173.06,68.28]
[1747402493003,67.4,173.15,173.06,68.28]
[1747402493204,5.7733,173.14,173.1,5.7744]
[1747402493499,67.4,173.15,173.1,5.7744]
[1747402493806,67.4,173.15,173.09,5.7747]
[1747402494007,67.4,173.15,173.06,68.28]
[1747402494311,5.7737,173.13,173.06,68.28]
[1747402495108,67.4,173.15,173.07,2.06121169]
[1747402495312,67.4,173.15,173.08,2.06121169]
[1747402495502,67.4,173.15,173.09,2.06121169]
[1747402495701,67.4,173.15,173.06,68.28]
[1747402495702,68.28,173.16,173.1,2.06121169]
[1747402495909,68.28,173.16,173.11,2.06121169]
[1747402496110,68.28,173.16,173.15,5.7728]
[1747402496308,67.2,173.17,173.08,3.6671]
[1747402496605,67.2,173.17,173.16,5.7724]
[1747402496810,67.22,173.19,173.08,3.6671]
[1747402497007,67.22,173.19,173.09,2.06443244]
[1747402497203,67.22,173.19,173.17,5.7719]
[1747402497605,67.22,173.19,173.15,5.7725]
[1747402497908,72.9916,173.19,173.08,3.6671]
[1747402498110,72.9916,173.19,173.09,2.06643195]
[1747402498111,67.22,173.19,173.09,2.06643195]
[1747402498312,67.22,173.19,173.1,2.06643195]
[1747402498613,67.28,173.2,173.11,69.34643195]
[1747402498905,67.28,173.2,173.19,5.7714]
[1747402499211,67.12,173.21,173.11,67.28]
[1747402499409,67.12,173.21,173.12,2.06911179]
[1747402499705,67.12,173.21,173.19,5.7714]
[1747402499910,67.12,173.21,173.11,67.28]
[1747402500115,67.12,173.21,173.12,2.06909368]
[1747402500408,134.32,173.24,173.14,27.34291835]
[1747402500612,134.32,173.24,173.15,71.05209368]
[1747402500799,134.32,173.24,173.16,69.34909368]
[1747402501004,134.32,173.24,173.17,2.06909368]
[1747402501209,67.28,173.24,173.18,2.06909368]
[1747402501411,67.14,173.26,173.19,2.06909368]
[1747402501616,202.47370333,173.38,173.2,2.06909368]
[1747402501810,67.28,173.37,173.22,27.34291835]
[1747402502114,67.24,173.36,173.23,4.03209368]
[1747402502320,67.24,173.36,173.24,2.06909368]
[1747402502614,67.2,173.36,173.25,2.06909368]
[1747402502814,67.2,173.36,173.26,167.85331203]
[1747402503017,73.046,173.36,173.3,5.7676]
[1747402503203,67.28,173.36,173.31,2.06909368]
[1747402503513,5.7664,173.35,173.32,2.06909368]
[1747402503715,67.28,173.36,173.33,2.06909368]
[1747402503914,67.28,173.36,173.26,138.4413]
[1747402504219,67.28,173.36,173.27,2.06843074]
[1747402504414,27.34291835,173.35,173.19,67.28]
[1747402504614,27.34291835,173.35,173.2,2.06860226]
[1747402504814,27.34291835,173.35,173.21,2.06860226]
[1747402505017,27.34291835,173.35,173.22,2.06860226]
[1747402505215,27.34291835,173.35,173.23,2.06860226]
[1747402505415,27.34291835,173.35,173.24,2.06860226]
[1747402505616,27.34291835,173.35,173.25,2.06860226]
[1747402505818,5.7678,173.3,173.26,7.83750226]
[1747402506014,67.34,173.29,173.19,67.28]
[1747402506215,5.7689,173.27,173.23,5.77]
[1747402506414,67.34,173.29,173.24,2.0676929]
[1747402506719,67.26,173.32,173.25,2.06739346]
[1747402506913,67.4,173.29,173.26,2.06739346]
[1747402507109,67.4,173.29,173.19,67.28]
[1747402507419,67.4,173.29,173.2,2.06756003]
[1747402507618,27.34291835,173.35,173.21,2.06756003]
[1747402507915,526.34291835,173.43,173.22,2.06756003]
[1747402508115,134.78,173.42,173.25,27.34291835]
[1747402508311,5.7659,173.36,173.32,5.767]
[1747402508710,67.52,173.38,173.26,72.7619]
[1747402508909,67.24,173.39,173.27,2.06420508]
[1747402509106,499.0,173.43,173.26,72.7619]
[1747402509107,499.0,173.43,173.29,27.34291835]
[1747402509319,67.5,173.42,173.3,2.06420508]
[1747402509615,67.5,173.42,173.31,69.30420508]
[1747402509808,67.5,173.42,173.32,2.06420508]
[1747402510010,67.5,173.42,173.34,5.7664]
[1747402510212,134.7,173.41,173.3,67.24]
[1747402510515,73.2447,173.4,173.36,5.7657]
[1747402510714,67.54,173.41,173.36,5.7657]
[1747402510914,566.24,173.43,173.3,94.58291835]
[1747402511220,67.56,173.42,173.36,5.7657]
[1747402511414,67.56,173.42,173.32,2.05771051]
[1747402511615,5.7648,173.39,173.33,2.05771051]
[1747402511816,499.0,173.43,173.34,2.05771051]
[1747402512020,67.56,173.42,173.35,2.05755715]
[1747402512319,67.56,173.42,173.3,94.58291835]
[1747402512520,67.56,173.42,173.31,2.05744968]
[1747402512715,5.7656,173.37,173.32,2.05744968]
[1747402512922,67.56,173.42,173.33,2.05744968]
[1747402513117,5.7652,173.38,173.34,5.7662]
[1747402513314,67.56,173.42,173.31,2.05612302]
[1747402513520,67.56,173.42,173.32,2.05612302]
[1747402513819,5.7642,173.41,173.37,5.7652]
[1747402514021,67.56,173.42,173.34,2.05612302]
[1747402514220,67.56,173.42,173.27,67.24]
[1747402514423,67.56,173.42,173.28,2.05508449]
[1747402514612,67.56,173.42,173.29,2.05508449]
[1747402514810,67.56,173.42,173.3,2.05508449]
[1747402515024,67.56,173.42,173.31,2.05508449]
[1747402515217,499.0,173.43,173.32,2.05508449]
[1747402515418,5.7648,173.39,173.36,5.7658]
[1747402515618,67.54,173.41,173.32,67.22]
[1747402515820,5.7644,173.4,173.32,67.22]
[1747402516020,67.54,173.41,173.32,67.22]
[1747402516422,5.7649,173.39,173.35,5.7658]
[1747402516725,5.7649,173.39,173.32,67.22]
[1747402516924,67.54,173.41,173.32,67.22]
[1747402517220,27.34291835,173.7,173.38,27.34291835]
[1747402517429,67.52,173.61,173.46,27.34291835]
[1747402517619,67.54,173.61,173.47,67.22]
[1747402517816,67.54,173.61,173.48,2.04252033]
[1747402518015,73.2978,173.61,173.55,5.7592]
[1747402518219,67.54,173.61,173.49,1.9265]
[1747402518515,67.54,173.61,173.54,5.7598]
[1747402519026,5.7581,173.59,173.54,5.7598]
[1747402519322,68.9,173.61,173.49,1.9265]
[1747402520126,1.15194102,173.62,173.49,1.9265]
[1747402520424,70.03194102,173.62,173.5,27.34291835]
[1747402520620,70.03194102,173.62,173.51,68.92]
[1747402520822,70.03194102,173.62,173.52,67.18]
[1747402521224,5.7581,173.59,173.54,5.7597]
[1747402521415,70.03194102,173.62,173.52,67.18]
[1747402521615,5.7579,173.6,173.55,5.7592]
[1747402521919,70.03194102,173.62,173.52,67.18]
[1747402522115,5.7584,173.59,173.55,5.7594]
[1747402522321,70.03194102,173.62,173.55,5.7594]
[1747402522620,70.07194102,173.62,173.52,67.18]
[1747402522931,75.92914102,173.62,173.52,67.18]
[1747402523229,75.92914102,173.62,173.57,5.7586]
[1747402523529,70.17194102,173.62,173.52,67.18]
[1747402523921,1.15194102,173.62,173.52,67.18]
[1747402524626,1.15194102,173.62,173.51,68.86]
[1747402524935,1.15194102,173.62,173.49,1.9265]
[1747402525126,1.15194102,173.62,173.47,70.8037]
[1747402526130,5.7593,173.56,173.47,70.8037]
[1747402526322,68.76,173.56,173.47,70.8037]
[1747402526835,5.7599,173.54,173.47,70.8037]
[1747402527128,68.76,173.56,173.47,70.8037]
[1747402527930,68.76,173.56,173.53,5.7599]
[1747402528133,68.58,173.59,173.47,98.14661835]
[1747402528431,74.3384,173.59,173.47,98.14661835]
[1747402528626,68.58,173.59,173.47,98.14661835]
[1747402529434,68.5,173.58,173.47,98.14661835]
[1747402529729,5.7588,173.57,173.47,98.14661835]
[1747402529929,68.5,173.58,173.47,98.14661835]
[1747402530123,5.7597,173.55,173.51,5.7607]
[1747402530322,68.84,173.56,173.47,70.8037]
[1747402531030,27.34291835,173.67,173.47,70.8037]
[1747402531230,68.84,173.66,173.48,27.34291835]
[1747402531432,68.56,173.65,173.48,27.34291835]
[1747402531635,68.56,173.65,173.47,70.8037]
[1747402532031,27.34291835,173.63,173.47,70.8037]
[1747402532233,5.7588,173.58,173.53,5.7599]
[1747402532438,137.38,173.57,173.53,5.7599]
[1747402532633,68.54,173.56,173.47,70.8037]
[1747402533028,68.54,173.56,173.29,1.00298301]
[1747402533029,68.54,173.56,173.42,70.7676]
[1747402533231,95.88291835,173.56,173.45,5.7627]
[1747402533431,95.88291835,173.56,173.42,68.84]
[1747402533634,27.34291835,173.52,173.37,3.7988]
[1747402533839,137.38,173.51,173.38,1.15353558]
[1747402534346,5.7623,173.47,173.42,5.7635]
[1747402534533,137.36,173.46,173.38,1.15353558]
[1747402534733,137.36,173.46,173.43,5.7632]
[1747402535039,68.54,173.47,173.38,1.15353558]
[1747402535431,5.7609,173.51,173.38,69.69353558]
[1747402535631,137.42,173.5,173.38,69.69353558]
[1747402535926,137.42,173.5,173.47,5.7621]
[1747402536128,137.42,173.5,173.39,68.86]
[1747402536339,68.52,173.51,173.41,27.34291835]
[1747402536542,68.52,173.51,173.5,5.7611]
[1747402536839,68.56,173.51,173.41,27.34291835]
[1747402537039,68.56,173.51,173.5,5.7611]
[1747402537343,137.4,173.53,173.44,68.86]
[1747402537532,137.4,173.53,173.45,1.9573]
[1747402538141,143.1601,173.53,173.49,5.7612]
[1747402538341,137.4,173.53,173.45,1.9573]
[1747402539244,143.1603,173.53,173.45,1.9573]
[1747402539442,137.4,173.53,173.45,1.9573]
[1747402539642,5.7605,173.52,173.48,5.7617]
[1747402539941,137.4,173.53,173.41,27.34291835]
[1747402540134,137.4,173.53,173.41,29.30021835]
[1747402540337,143.1602,173.53,173.49,5.7614]
[1747402540538,137.4,173.53,173.49,5.7614]
[1747402540844,137.4,173.53,173.48,5.7616]
[1747402541343,137.4,173.53,173.41,31.34183676]
[1747402541744,503.6591,173.57,173.53,5.7599]
[1747402541949,68.86,173.55,173.53,5.7599]
[1747402542138,68.38,173.54,173.53,5.7599]
[1747402542338,68.38,173.54,173.52,5.7602]
[1747402542538,68.38,173.54,173.44,2.04333271]
[1747402542738,68.86,173.55,173.45,98.24625106]
[1747402542945,137.2,173.55,173.54,5.7598]
[1747402543143,68.86,173.55,173.54,5.7598]
[1747402543340,137.18,173.55,173.54,5.7598]
[1747402543541,68.86,173.55,173.54,5.7598]
[1747402544039,68.86,173.59,173.49,2.04549936]
[1747402544243,68.22,173.58,173.5,2.04549936]
[1747402544438,68.22,173.58,173.51,2.04549936]
[1747402544646,68.22,173.58,173.57,5.7587]
[1747402544948,68.86,173.59,173.5,68.84]
[1747402545145,136.98,173.59,173.51,3.95202648]
[1747402545446,136.98,173.59,173.47,1.9914]
[1747402545647,136.98,173.59,173.48,2.04846925]
[1747402545846,5.7585,173.58,173.55,5.7594]
[1747402546045,497.96,173.65,173.5,2.04846925]
[1747402546243,5.7569,173.63,173.59,5.7579]
[1747402546444,136.92,173.64,173.59,5.7579]
[1747402546743,136.92,173.64,173.51,68.84]
[1747402546945,136.92,173.64,173.52,2.04730043]
[1747402547145,136.92,173.64,173.51,68.84]
[1747402547343,136.92,173.64,173.52,2.04856711]
[1747402547542,5.7573,173.62,173.58,5.7582]
[1747402547746,136.92,173.64,173.51,68.84]
[1747402547944,154.3,173.64,173.52,5.7602]
[1747402548141,136.92,173.64,173.48,2.04994042]
[1747402548343,27.0923695,173.63,173.49,2.04994042]
[1747402548639,5.7592,173.56,173.47,3.896]
[1747402548950,68.0,173.55,173.53,5.7598]
[1747402549247,68.0,173.55,173.49,2.05048223]
[1747402549446,68.0,173.55,173.54,5.7598]
[1747402549636,67.9,173.55,173.47,3.896]
[1747402549841,67.9,173.55,173.48,2.05122789]
[1747402550053,67.9,173.55,173.54,5.7598]
[1747402550245,497.96,173.65,173.5,2.05122789]
[1747402550444,136.76,173.64,173.51,2.05040008]
[1747402550637,136.76,173.64,173.52,2.05040008]
[1747402550841,136.76,173.64,173.53,2.05040008]
[1747402551043,136.76,173.64,173.48,11.5234]
[1747402551242,136.76,173.64,173.49,2.05269378]
[1747402551440,136.76,173.64,173.47,3.896]
[1747402551441,136.76,173.64,173.5,2.05269378]
[1747402551646,5.7591,173.57,173.53,5.7601]
[1747402551946,67.84,173.56,173.53,5.7601]
[1747402552146,136.68,173.56,173.47,3.896]
[1747402552449,136.68,173.56,173.54,5.7596]
[1747402552648,136.68,173.56,173.47,3.896]
[1747402552851,5.7597,173.55,173.52,5.7604]
[1747402553052,5.7597,173.55,173.47,3.896]
[1747402553349,5.7597,173.55,173.53,5.7601]
[1747402553545,5.7597,173.55,173.47,3.896]
[1747402553851,5.7597,173.55,173.48,2.05958759]
[1747402554053,67.64,173.59,173.49,2.05958759]
[1747402554253,67.64,173.59,173.5,69.69958759]
[1747402554449,67.64,173.59,173.51,2.05958759]
[1747402554644,67.64,173.59,173.52,2.05958759]
[1747402554841,67.64,173.59,173.53,2.05958759]
[1747402555053,67.64,173.59,173.54,2.05958759]
[1747402555249,67.64,173.59,173.58,5.7585]
[1747402556149,67.64,173.59,173.57,5.7585]
[1747402556352,67.64,173.59,173.5,67.64]
[1747402556554,67.64,173.59,173.51,2.06232828]
[1747402556749,67.64,173.59,173.52,2.06232828]
[1747402556949,67.64,173.59,173.53,2.06232828]
[1747402557152,67.64,173.59,173.5,67.64]
[1747402557347,67.64,173.59,173.51,2.06256584]
[1747402557549,67.64,173.59,173.52,2.06256584]
[1747402557751,67.64,173.59,173.53,2.06256584]
[1747402557949,5.7567,173.64,173.61,5.7575]
[1747402558149,135.14,173.63,173.51,79.1613]
[1747402558348,135.14,173.63,173.52,2.06266168]
[1747402558547,5.7573,173.62,173.53,2.06266168]
[1747402558751,135.14,173.63,173.54,2.06266168]
[1747402558946,140.8969,173.63,173.55,2.06266168]
[1747402559144,67.64,173.63,173.56,2.06266168]
[1747402559348,67.4,173.62,173.57,2.06266168]
[1747402559548,67.4,173.62,173.61,5.7575]
[1747402559853,135.02,173.63,173.61,2.06573811]
[1747402560052,67.64,173.63,173.62,7.82247824]
[1747402560251,67.64,173.67,173.62,2.06537824]
[1747402560446,67.64,173.67,173.63,2.06449193]
[1747402560648,67.64,173.67,173.66,5.7558]
[1747402560853,135.02,173.71,173.66,2.06592599]
[1747402561057,5.7545,173.7,173.66,5.7558]
[1747402561255,67.64,173.71,173.61,67.64]
[1747402561455,67.38,173.7,173.62,2.06539321]
[1747402561656,67.38,173.7,173.63,2.06522941]
[1747402561954,67.38,173.7,173.64,2.06522941]
[1747402562153,67.38,173.7,173.66,5.7556]
[1747402562349,67.38,173.7,173.57,69.5574]
[1747402562551,67.38,173.7,173.58,2.06289978]
[1747402562754,67.38,173.7,173.59,2.06289978]
[1747402562954,67.38,173.7,173.6,2.06289978]
[1747402563154,5.7565,173.65,173.62,5.7569]
[1747402563355,67.2,173.64,173.63,2.06289978]
[1747402563560,67.2,173.64,173.57,69.5574]
[1747402563758,67.2,173.64,173.61,5.7573]
[1747402564055,67.2,173.64,173.57,69.5574]
[1747402564250,67.2,173.64,173.58,2.06372362]
[1747402564451,67.2,173.64,173.59,2.06372362]
[1747402564656,67.2,173.64,173.6,2.06372362]
[1747402564858,5.7575,173.61,173.58,5.7582]
[1747402565055,73.3775,173.61,173.59,2.06332419]
[1747402565357,67.62,173.61,173.53,67.62]
[1747402565553,67.62,173.61,173.56,5.7591]
[1747402565760,67.62,173.61,173.57,2.06380995]
[1747402565958,73.3777,173.61,173.58,7.82210995]
[1747402566148,67.62,173.61,173.51,3.7698]
[1747402566455,67.62,173.61,173.52,2.06419811]
[1747402566660,67.62,173.61,173.53,2.06419811]
[1747402566960,67.62,173.61,173.54,2.06419811]